Workbook

Sheet Sheet1
A1: 铜仁市文体广电旅游局2023年公开选聘所属事业单位工作人员考试总成绩及拟考察人员名单
A2: 序号 | B2: 姓名 | C2: 性别 | D2: 报考单位名称 | E2: 报考岗位代码 及名称 | F2: 笔试 成绩 | G2: 笔试成绩折算后 | H2: 面试 成绩 | I2: 面试成绩折算后 | J2: 总成绩 | K2: 总成绩排名 | L2: 是否进入考察 | M2: 备注
A3: 1 | B3: 郭 勇 | C3: 男 | D3: 红二红六军团长征贵州纪念馆 | E3: 01工作人员 | F3: 62 | G3: =F3*0.5 -> 31 | H3: 86.16 | I3: =H3*0.5 -> 43.08 | J3: =G3+I3 -> 74.08 | K3: 1 | L3: 是
A4: 2 | B4: 王雯竹 | C4: 女 | D4: 红二红六军团长征贵州纪念馆 | E4: 01工作人员 | F4: 63 | G4: =F4*0.5 -> 31.5 | H4: 81.67 | I4: =H4*0.5 -> 40.84 | J4: =G4+I4 -> 72.34 | K4: 2
A5: 3 | B5: 邵莎莎 | C5: 女 | D5: 红二红六军团长征贵州纪念馆 | E5: 01工作人员 | F5: 63 | G5: =F5*0.5 -> 31.5 | H5: 79.83 | I5: =H5*0.5 -> 39.92 | J5: =G5+I5 -> 71.42 | K5: 3
A6: 4 | B6: 吴美兰 | C6: 女 | D6: 红二红六军团长征贵州纪念馆 | E6: 01工作人员 | F6: 62 | G6: =F6*0.5 -> 31 | H6: 76.17 | I6: =H6*0.5 -> 38.09 | J6: =G6+I6 -> 69.09 | K6: 4
A7: 5 | B7: 傅荣春 | C7: 男 | D7: 铜仁博物馆 | E7: 01工作人员 | F7: 64 | G7: =F7*0.5 -> 32 | H7: 80.67 | I7: =H7*0.5 -> 40.34 | J7: =G7+I7 -> 72.34 | K7: 1 | L7: 是
A8: 6 | B8: 胡忠艳 | C8: 女 | D8: 铜仁博物馆 | E8: 01工作人员 | F8: 60 | G8: =F8*0.5 -> 30 | H8: 78.67 | I8: =H8*0.5 -> 39.34 | J8: =G8+I8 -> 69.34 | K8: 2
A9: 7 | B9: 廖群艳 | C9: 女 | D9: 铜仁市文化旅游产业发展招商服务中心 | E9: 01工作人员 | F9: 71 | G9: 35.5 | H9: 83.83 | I9: 41.92 | J9: 77.42 | K9: 1 | L9: 是
A10: 8 | B10: 杨前坤 | C10: 男 | D10: 铜仁市文化旅游产业发展招商服务中心 | E10: 01工作人员 | F10: 68.5 | G10: 34.25 | H10: 81.00 | I10: 40.50 | J10: 74.75 | K10: 2
A11: 9 | B11: 李潭飞 | C11: 男 | D11: 铜仁市文化旅游产业发展招商服务中心 | E11: 01工作人员 | F11: 62.2 | G11: 31.1 | H11: 80.33 | I11: 40.17 | J11: 71.27 | K11: 3
A12: 10 | B12: 蒋秀群 | C12: 男 | D12: 铜仁市文化旅游产业发展招商服务中心 | E12: 01工作人员 | F12: 62.2 | G12: 31.1 | H12: 78.83 | I12: 39.42 | J12: 70.52 | K12: 4
A13: 11 | B13: 滕 媛 | C13: 女 | D13: 铜仁市老年体育服务中心 | E13: 01工作人员 | F13: 66 | G13: 33 | H13: 83.00 | I13: 41.50 | J13: 74.50 | K13: 1 | L13: 是
A14: 12 | B14: 张 頔 | C14: 女 | D14: 铜仁市老年体育服务中心 | E14: 01工作人员 | F14: 64.5 | G14: 32.25 | H14: 82.17 | I14: 41.09 | J14: 73.34 | K14: 2
A15: 13 | B15: 杨 杰 | C15: 男 | D15: 铜仁市老年体育服务中心 | E15: 01工作人员 | F15: 74 | G15: 37 | H15: 0.00 | I15: 0.00 | J15: 37.00 | K15: 3 | M15: 面试缺考
A16: 14 | B16: 阙 芹 | C16: 女 | D16: 铜仁古城保护管理服务中心 | E16: 01工作人员 | F16: 68.8 | G16: 34.4 | H16: 82.83 | I16: 41.42 | J16: 75.82 | K16: 1 | L16: 是
A17: 15 | B17: 吴诗凯 | C17: 男 | D17: 铜仁古城保护管理服务中心 | E17: 01工作人员 | F17: 68 | G17: 34 | H17: 80.66 | I17: 40.33 | J17: 74.33 | K17: 2
A18: 16 | B18: 杨 俊 | C18: 男 | D18: 铜仁古城保护管理服务中心 | E18: 01工作人员 | F18: 64 | G18: 32 | H18: 0.00 | I18: 0.00 | J18: 32.00 | K18: 3 | M18: 面试缺考

Sheet Sheet2

Sheet Sheet3
